Cogmind - Beta 11.1 @@@ ROGUE MODE // 2022.06.02 @ 16:25:01 Player: Okkudo Result: Destroyed by S-10 Pest with Light Assault Rifle Performance ------------- Evolutions (2) 1000 Regions Visited (4) 800 Robots Destroyed (54) 270 Value Destroyed (1512) 1512 Prototype IDs (1) 20 Alien Tech Used (0) 0 Bonus (0) 0 TOTAL SCORE: 3602 Bonus ------- None Cogmind --------- Core Integrity 0/550 Matter 285/300 Energy 38/100 System Corruption 1% Temperature Cool (0) Movement Core (700) Ox13 Location -8/Materials Parts ------- > --- POWER (1) -------- (None) > --- PROPULSION (3) --- (None) > --- UTILITY (5) ------ High-capacity Storage Unit > --- WEAPON (2) ------- Hammer > --- INVENTORY (20) --- Light Ion Engine Aluminum Leg Medium Storage Unit Machine Analyzer Advanced Visual Processing Unit Improved Weapon Shielding Hardened Light Armor Plating Shield Generator Heavy Assault Rifle Grenade Launcher Rocket Array Improved Datajack Hammer Peak State ------------ > --- POWER ------------ Nuclear Core > --- PROPULSION ------- Aluminum Leg Carbon-fiber Leg VSS Leg > --- UTILITY ---------- High-capacity Storage Unit Weight Redist. System Core Shielding Improved Weapon Shielding System Shield > --- WEAPON ----------- Heavy EM Pulse Gun Katana > --- INVENTORY -------- Light Ion Engine Aluminum Leg Medium Storage Unit Machine Analyzer Advanced Visual Processing Unit Medium Armor Plating Hardened Light Armor Plating Shield Generator Heavy Assault Rifle Grenade Launcher Improved Datajack Hammer Hammer [Rating: 27] Favorites ----------- Power Improved Ion Engine Engine Improved Ion Engine Power Core Nuclear Core Propulsion Aluminum Leg Treads Armored Treads Leg Aluminum Leg Utility System Shield Device Sensor Array Storage High-capacity Storage Unit Processor Advanced Visual Processing Unit Hackware System Shield Protection Medium Armor Plating Weapon Shotgun Energy Gun Heavy EM Pulse Gun Ballistic Gun Shotgun Launcher Grenade Launcher Impact Weapon Hammer Slashing Weapon Katana Build | -11 -10 -9 -9 -8 ------- Run | Scr Mat Mat Min Mat Slots Evolved 4 | . . 2 . 2 Power . | . . . . . Propulsion 1 | . . 1 . . Utility 3 | . . 1 . 2 Weapon . | . . . . . Parts Attached 57 | 6 9 25 3 14 Power 8 | 1 2 4 . 1 Engine 7 | 1 2 4 . . Core 1 | . . . . 1 Reactor . | . . . . . Propulsion 17 | 2 3 8 1 3 Treads 1 | . . . . 1 Leg 16 | 2 3 8 1 2 Wheel . | . . . . . Hover . | . . . . . Flight . | . . . . . Utility 16 | 1 2 8 1 4 Device 5 | . 1 3 . 1 Storage 3 | 1 1 1 . . Processor 1 | . . 1 . . Hackware 2 | . . 2 . . Protection 5 | . . 1 1 3 Artifact . | . . . . . Weapon 16 | 2 2 5 1 6 Energy Gun 2 | . . . . 2 Energy Cannon . | . . . . . Ballistic Gun 8 | 2 2 3 . 1 Ballistic Cannon . | . . . . . Launcher 2 | . . . 1 1 Special Weapon . | . . . . . Impact Weapon 2 | . . 1 . 1 Slashing Weapon 2 | . . 1 . 1 Piercing Weapon . | . . . . . Special Melee Weapon . | . . . . . Unidentified Prototypes 1 | . . 1 . . Parts Lost 27 | . 3 9 1 14 Power 2 | . . 1 . 1 Propulsion 12 | . 2 3 1 6 Utility 7 | . . 3 . 4 Weapon 6 | . 1 2 . 3 Highest Loss Streak 4 | . 2 2 1 4 To Critical Strikes 1 | . . . . 1 Average Slot Usage (%) 87 | . 73 89 99 78 Engine 9 | . 13 10 11 2 Leg 25 | . 20 27 32 14 Device 5 | . 4 10 . 6 Storage 11 | . 14 11 11 9 Hackware 6 | . . 4 11 8 Protection 7 | . . 3 11 16 Ballistic Gun 13 | . 20 18 11 4 Launcher 1 | . . . 5 . Slashing Weapon 4 | . . 2 5 7 Naked Turns . | . . . . . Heaviest Build 62 | 11 15 56 60 62 Greatest Support 43 | 20 20 33 33 43 Greatest Overweight (x) 13 | . 4 2 2 13 Average Overweight (x) . | . . . 1 1 Largest Inventory Capacity 20 | 8 10 20 20 20 Average Capacity 15 | 6 8 12 20 20 Most Carried 19 | 1 5 16 17 19 Average Carried 10 | . 1 9 14 14 Final Capacity 20 | 8 10 20 20 20 Final Carried 16 | . 5 16 15 13 Class Distribution -------------------- 56% | Scavenger-Mutant 43% | Mutant Dominant Class ---------------- Mutant | -10/Materials Mutant | -9/Materials Scavenger-Mutant | -9/Mines Scavenger-Mutant | -8/Materials Resources | -11 -10 -9 -9 -8 ----------- Run | Scr Mat Mat Min Mat Matter Collected 1569 | 232 159 883 104 191 Remotely . | . . . . . Salvage Created 2273 | 80 413 1257 116 407 Parts 120 | 2 21 71 4 22 Haulers Intercepted 3 | . . 3 . . Recyclers Shooed 5 | . 3 . . 2 Parts Field Recycled . | . . . . . Retrieved Matter . | . . . . . Parts Self-Destructed . | . . . . . Prevented . | . . . . . Kills | -11 -10 -9 -9 -8 ------- Run | Scr Mat Mat Min Mat Combat Hostiles Destroyed 41 | . 10 21 2 8 Melee 1 | . . . . 1 Guns 39 | . 10 21 2 6 AOE 1 | . . . . 1 Classes Destroyed 11 | 1 2 7 . 1 Worker 4 | . . 2 1 1 Builder 1 | . . 1 . . Hauler 3 | . . 3 . . Recycler 4 | 1 2 1 . . Watcher 1 | . . 1 . . Swarmer 6 | . 6 . . . Grunt 23 | . 4 15 . 4 Brawler 2 | . . 1 1 . Duelist 1 | . . 1 . . Sentry 8 | . . 4 1 3 Hunter 1 | . . . . 1 Best Kill Streak 7 | 1 3 7 1 4 Combat Bots Only 6 | . 3 6 1 4 Max Kills in Single Turn 1 | 1 1 1 1 1 Gunslinging . | . . . . . Exploded 1 | . . . . 1 Melee 1 | . . . . 1 Uniques/NPCs Destroyed . | . . . . . Combat | -11 -10 -9 -9 -8 -------- Run | Scr Mat Mat Min Mat Damage Taken 3748 | . 576 1130 149 1893 Core 999 | . 158 269 18 554 Absorbed by Shields 199 | . . 199 . . Redirected to Shielding 138 | . . . . 138 Core Remaining (%) 54 | 100 36 . 28 . Volleys Fired 213 | 2 66 95 5 45 Largest 2 | 2 2 2 1 1 Hottest 45 | 40 40 43 23 45 Shots Fired 322 | 4 112 156 5 45 Gun 322 | 4 112 156 5 45 Cannon . | . . . . . Launcher . | . . . . . Special . | . . . . . Kinetic 310 | 4 112 156 5 33 Thermal . | . . . . . Explosive . | . . . . . Electromagnetic 12 | . . . . 12 Robot Hit Streak 16 | 1 13 16 11 11 Robot Miss Streak 4 | 2 3 4 1 4 Penetration Max . | . . . . . Secondary Targets 1 | . . 1 . . Max Gunslinging Chain 1 | . . 1 . . Shots Hit Robots 227 | 1 69 111 6 40 Core Hits 106 | 1 25 55 4 21 Critical Kills . | . . . . . Critical Parts Destroyed 1 | . . . . 1 Critical Strikes 1 | . . . . 1 Smash 1 | . . . . 1 Melee Attacks 7 | . . . 1 6 Impact 3 | . . . . 3 Slashing 4 | . . . 1 3 Piercing . | . . . . . Sneak Attacks 2 | . . . 1 1 Combat Hostiles . | . . . . . Follow-up Attacks . | . . . . . Damage Inflicted 3228 | 15 636 1605 159 813 Guns 2921 | 15 636 1605 99 566 Cannons . | . . . . . Explosions 114 | . . . . 114 Melee 190 | . . . 60 130 Ramming 3 | . . . . 3 Kinetic 2783 | 15 636 1605 99 428 Thermal 114 | . . . . 114 Explosive . | . . . . . Electromagnetic 138 | . . . . 138 Impact 68 | . . . . 68 Slashing 122 | . . . 60 62 Piercing . | . . . . . Highest Corruption 3 | . . 3 3 1 Average Corruption 2 | . . 3 3 1 Corruption Purged . | . . . . . Corruption Blocked . | . . . . . Effects 38 | . . 10 23 5 Message Errors 10 | . . 3 4 3 Matter Fused 10 | . . 4 5 1 Heat Flow Errors 3 | . . . 3 . Energy Discharges 3 | . . 1 2 . Data Loss (minor) 8 | . . 1 6 1 Data Loss (major) 1 | . . . 1 . Misfires 1 | . . 1 . . Alerts 2 | . . . 2 . Overload Shots . | . . . . . Overflow Damage 52 | . . . 20 32 Projectiles . | . . . . . Explosions 16 | . . . . 16 Melee 36 | . . . 20 16 Knockbacks . | . . . . . Impact . | . . . . . Kinetic . | . . . . . Secondary . | . . . . . Self-Inflicted Damage 52 | . . . . 52 Shots 2 | . . . . 2 Rammed 1 | . . . . 1 Targets Rammed 2 | . 1 . . 1 Kicked 1 | . 1 . . . Crushed . | . . . . . Highest Temperature 156 | . 12 25 156 18 Average Temperature 21 | . 7 5 71 8 Received Heat Transfer 1278 | . 177 435 36 630 Siege Activations . | . . . . . Robots Corrupted . | . . . . . Combat Hostiles . | . . . . . Parts Fried . | . . . . . Impact Corruptions 1 | . . . . 1 Robots Melted . | . . . . . Combat Hostiles . | . . . . . Parts Melted 3 | . . . 2 1 Heat Transferred 150 | . . . . 150 Parts Sabotaged . | . . . . . Parts Stolen . | . . . . . Parts Stripped . | . . . . . Power Chain Reactions 2 | . . . . 2 Missiles Intercepted . | . . . . . Alert | -11 -10 -9 -9 -8 ------- Run | Scr Mat Mat Min Mat Peak Influence 282 | 5 282 248 105 146 Initial 60 | . 3 53 60 . Average 79 | 3 157 95 32 71 Maximum Alert Level 1 | . 1 1 . . Low Security (%) 93 | 100 70 92 100 100 Level 1 6 | . 29 7 . . Level 2 . | . . . . . Level 3 . | . . . . . Level 4 . | . . . . . Level 5 . | . . . . . High Security . | . . . . . Max Security . | . . . . . Squads Dispatched 9 | . 3 5 . 1 Investigation 3 | . 1 2 . . Extermination . | . . . . . Reinforcement 6 | . 2 3 . 1 Assault . | . . . . . Garrison . | . . . . . Intercept . | . . . . . Searches Triggered . | . . . . . Construction Impeded . | . . . . . Haulers Reinforced . | . . . . . Active Scanning Responses . | . . . . . Cargo Convoy Interrupts . | . . . . . Stealth | -11 -10 -9 -9 -8 --------- Run | Scr Mat Mat Min Mat Distress Signals 7 | . 2 3 . 2 Communications Jammed . | . . . . . Distress Signals . | . . . . . Times Spotted 81 | . 18 32 7 24 Peak Tracking Total 8 | . 8 6 4 7 Tactical Retreats 6 | . . 1 . 5 Traps | -11 -10 -9 -9 -8 ------- Run | Scr Mat Mat Min Mat Traps Triggered 6 | . 4 1 . 1 Indirectly . | . . . . . Trap Hack Attempts . | . . . . . Triggered . | . . . . . Disarmed . | . . . . . Reprogrammed . | . . . . . Reused . | . . . . . Traps Extracted . | . . . . . Installed . | . . . . . Triggered . | . . . . . Machines | -11 -10 -9 -9 -8 ---------- Run | Scr Mat Mat Min Mat Machines Disabled . | . . . . . Max in Single Turn . | . . . . . Machines Sabotaged . | . . . . . Garrisons Compromised . | . . . . . Overloaded Fab Kills . | . . . . . Hacking | -11 -10 -9 -9 -8 --------- Run | Scr Mat Mat Min Mat Machines Accessed 7 | . 3 3 . 1 Terminals 7 | . 3 3 . 1 Fabricators . | . . . . . Repair Stations . | . . . . . Recycling Units . | . . . . . Scanalyzers . | . . . . . Garrison Access . | . . . . . Total Hacks 30 | . 10 14 . 6 Successful 15 | . 6 6 . 3 Failed 15 | . 4 8 . 3 Catastrophic . | . . . . . Database Lockouts . | . . . . . Manual 15 | . 5 6 . 4 Terminals 30 | . 10 14 . 6 Fabricators . | . . . . . Repair Stations . | . . . . . Recycling Units . | . . . . . Scanalyzers . | . . . . . Garrison Access . | . . . . . Terminal Hacks 11 | . 4 5 . 2 Emergency Access Points 1 | . . 1 . . Terminal Index 2 | . 1 . . 1 Alert Level 1 | . . 1 . . Unreport Threat 1 | . . 1 . . Locate Traps 1 | . . . . 1 Zone Layout 5 | . 3 2 . . Fabricator Hacks . | . . . . . Repair Station Hacks . | . . . . . Recycling Unit Hacks . | . . . . . Scanalyzer . | . . . . . Garrison Access Hacks . | . . . . . Unauthorized Hacks 4 | . 2 1 . 1 Terminals 4 | . 2 1 . 1 Botnet 4 | . 2 1 . 1 Fabricators . | . . . . . Repair Stations . | . . . . . Recycling Units . | . . . . . Scanalyzers . | . . . . . Garrison Access . | . . . . . Data Cores Recovered . | . . . . . Used . | . . . . . Hacking Detections 5 | . 2 2 . 1 Full Trace Events 3 | . 1 2 . . Feedback Events . | . . . . . Feedback Blocked . | . . . . . Robot Schematics Acquired . | . . . . . Robots Built . | . . . . . Authchips . | . . . . . Time . | . . . . . Total Robot Build Rating . | . . . . . Part Schematics Acquired . | . . . . . Parts Built . | . . . . . Authchips . | . . . . . Time . | . . . . . Total Part Build Rating . | . . . . . Parts Repaired . | . . . . . Time . | . . . . . Parts Recycled . | . . . . . Recycled Matter . | . . . . . Retrieved Matter . | . . . . . Retrieved Components . | . . . . . Parts Scanalyzed . | . . . . . Part Schematics Acquired . | . . . . . Parts Damaged . | . . . . . Bothacking | -11 -10 -9 -9 -8 ------------ Run | Scr Mat Mat Min Mat Used RIF Installer . | . . . . . Robots Hacked . | . . . . . Non-combat . | . . . . . Combat . | . . . . . Robot Hacks Applied . | . . . . . Relay Couplers Released . | . . . . . Fabnet Peak Effective % . | . . . . . Robots Rewired . | . . . . . Allies Hacked . | . . . . . Hacks Repelled . | . . . . . Allies | -11 -10 -9 -9 -8 -------- Run | Scr Mat Mat Min Mat Total Allies . | . . . . . Largest Group . | . . . . . Highest-Rated Group . | . . . . . Highest-Rated Ally . | . . . . . Total Orders . | . . . . . Ally Attacks . | . . . . . Total Damage . | . . . . . Kills . | . . . . . Allies Corrupted . | . . . . . Allies Melted . | . . . . . Intel | -11 -10 -9 -9 -8 ------- Run | Scr Mat Mat Min Mat Robot Analysis Total . | . . . . . Derelict Logs Recovered 1 | . . . 1 . Drone Launches . | . . . . . Drone Recoveries . | . . . . . Exploration | -11 -10 -9 -9 -8 ------------- Run | Scr Mat Mat Min Mat Turns Passed 3901 | 59 558 1351 1146 787 Spaces Moved 1618 | 37 278 489 572 242 Core 37 | 3 19 . . 15 Treads 57 | . . . . 57 Legs 1524 | 34 259 489 572 170 Wheels . | . . . . . Hover . | . . . . . Flight . | . . . . . Fastest Speed 50 | 50 100 120 190 185 Average Speed 178 | 114 133 167 191 227 Slowest Speed 700 | 120 250 260 260 700 Overloaded Moves . | . . . . . Propulsion Burnouts . | . . . . . Robots Hopped . | . . . . . Cave-ins Triggered . | . . . . . Exploration Rate (%) 43 | 4 44 43 95 32 Regions Visited 4 Branch Regions 1 Pre-discovered Areas . | . . . . . Known Exits Taken 1 | . . . 1 . Unknown Exits Taken 3 | 1 1 1 . . Scrap Searched 1 | . . . 1 . Spaces Dug . | . . . . . Terrain Destroyed 4 | . . . . 4 Melee . | . . . . . Projectile . | . . . . . AOE 4 | . . . . 4 Terrain Rammed . | . . . . . Walls Destroyed . | . . . . . Machines Disabled . | . . . . . Actions | -11 -10 -9 -9 -8 --------- Run | Scr Mat Mat Min Mat Total 2334 | 50 372 875 614 423 Wait 366 | . 6 232 30 98 Move 1614 | 36 277 488 571 242 Hop . | . . . . . Pick Up 60 | 6 12 29 2 11 Fast Attach 3 | . . 3 . . Attach 35 | 6 7 13 1 8 Detach . | . . . . . Swap 19 | . 2 9 2 6 Drop 15 | . 1 6 2 6 Fire 213 | 2 66 95 5 45 Melee 7 | . . . 1 6 Ram . | . . . . . Kick 1 | . 1 . . . Crush 1 | . . . . 1 Escape Stasis . | . . . . . Rewire . | . . . . . Trap . | . . . . . Miscellaneous . | . . . . . Route ------- -11/Scrapyard -10/Materials -9/Materials (discovered 2 exits: [*Min] / [*Sto]) -9/Mines (discovered 2 exits: *Mat x2) -8/Materials History --------- Turn | Location | Event 5 | -11/Scrapyard | Discovered new exit (range 16) 60 | -11/Scrapyard | Entered Materials 311 | -10/Materials | Build established: Mutant 409 | -10/Materials | Core integrity fell below 50% 515 | -10/Materials | Discovered new exit (range 16) 618 | -10/Materials | Entered another Materials area 618 | -9/Materials | Evolved 2 slots: Propulsion x1, Utility x1 619 | -9/Materials | Discovered new exit (range 8) 1641 | -9/Materials | Core integrity fell below 50% 1746 | -9/Materials | Discovered new exit (range 16) 1953 | -9/Materials | Build established: Scavenger-Mutant 1969 | -9/Materials | Entered Mines 1979 | -9/Mines | Joined a pair of Derelicts in attacking an 0b10 outpost 2075 | -9/Mines | Identified exit to Materials 2529 | -9/Mines | YI-UF0 nonchalantly dropped a Grenade Launcher on the ground 3081 | -9/Mines | Discovered exit to Materials (range 6) 3115 | -9/Mines | Entered Materials 3115 | -8/Materials | Evolved 2 slots: Utility x2 3477 | -8/Materials | Lost 3 parts (2n1w) 3647 | -8/Materials | Lost 4 parts (1p2n1w) 3760 | -8/Materials | Found Prototype Launcher 3821 | -8/Materials | Core integrity fell below 50% 3884 | -8/Materials | Lost 4 parts (3u1w) 3889 | -8/Materials | Core integrity fell below 20% 3902 | -8/Materials | Destroyed by S-10 Pest with Light Assault Rifle Last Messages --------------- 03825_ K-01 Serf cleans the Terminal. 03832_ System Shield destroyed. 03835_ Slammed into U-05 Engineer. 03839_ K-01 Serf cleans the Terminal. 03840_ System corrupted: Matter fused (-10). 03847_ Y-45 Defender misfires. 03853_ Core Shielding destroyed. 03876_ Critical hit (Burn: +37). 03881_ K-01 Serf cleans the Garrison Access. 03884_ G-47 Trooper suffers critical hit (Smash). 03884_ Destroyed Imp. Heat Sink. 03884_ G-47 Trooper system corrupted by crushing effect. 03884_ G-47 Trooper IFF system glitched. 03887_ K-01 Serf cleans the Garrison Access. 03893_ Arm. Treads destroyed. 03894_ Critical hit (Burn: +37). 03894_ Lgt. Nuclear Core melted. 03894_ G-47 Trooper destroyed. 03895_ Weight Redist. System destroyed. 03896_ K-01 Serf collects debris. Map ----- +----------------------------------------------------+ | ?????????????????????????????????????????????????? | | ?????????????????????????????????????????????????? | | ?????????????????????????????????????????????????? | | ?????????????????????????????????????????????????? | | ?????????????????????????????????????????????????? | | ?????????????????????????????????????????????????? | | ?????????????????????????????????????????????????? | | ?????????????????????????????????????????????????? | | ?????????????????????????????????????????????????? | | ?????????????????????????????????????????????????? | | ?????????????????????????????????????????????????? | | ?????????????????????????????????????????????????? | | ?????????????????????????????????????????????????? | | ???????????????? ??????????????????????????????? | | ?????????????? ######??#######???????????????? | | ?????????????? ?? !!#???????????????? | | ??????????????? !!#???????????????? | | ??????????????? """ !!????????????????? | | ???????????????? G" !?????????????????? | | ????????????????? """ ??????????????????? | | ????????????????? u ???????????????????? | | ?????????????????"""" #???????????????????? | | ???????????????? """" ######??????????????? | | ??????????s """" k ???????????????? | | ?????????? s ####???????????????? | | ??????????????# @% g ##??????????????? | | ???????????????# ###### g t +??????????? | | ??????????????????????####+###k #####???????????? | | ??????????????????????# #??##???????????????? | | ??????????????????????# #???????????????????? | | ??????????????????????# #???????????????????? | | ??????????????????????# #???????????????????? | | ??????????????????????# #???????????????????? | | ??????????????????????# #???????????????????? | | ??????????????????????#####/##???????????????????? | | ??????????????????????????# #????????????????????? | | ??????????????????????????# #????????????????????? | | ??????????????????????????# #????????????????????? | | ??????????????????????????# #????????????????????? | | ?? ?????????????????????# #????????????????????? | | ?????????????????????# #????????????????????? | | ?????????????????????# #????????????????????? | | ?????????????????????# #????????????????????? | | ?????????????????????# #????????????????????? | | #????????????????????# #????????????????????? | | #????????????????????# #????????????????????? | | #??????????????#####?# #????????????????????? | | #??????????????#== ### ###??????????????????? | | #??????????????#== #??????????????????? | | #??????????????#** [#########??????????? | +----------------------------------------------------+ Best States ------------- Heat Dissipation 31 Energy Generation 14 Energy Capacity 280 Matter Stores 300 Matter Capacity 300 Sight Range 20 Robot Scan Range 14 Terrain Scan Density 10 Additional Mass Support 6 Armor Coverage 225 Core Shielding 20 Weapon Shielding 66 Evasion (%) 55 Recoil Reduction 1 Defensive Hacking 10 Item Schematics ----------------- None Robot Schematics ------------------ None Fabricated ------------ Nothing Alien Tech Used ----------------- None Achievements -------------- None Challenges ------------ None Game ------ Seed RegenerativeMeleeWand Manual? 0 Play Time 00:45:08 Cumulative 35.8 hours Start 2022.06.02 @ 15:42:08 End 2022.06.02 @ 16:25:01 Sessions 1 Manual Loads 0 Difficulty Rogue Special Mode None Game No. 79 Rogue 79 Adventurer 0 Explorer 0 Win Type - Total 0 Types 0/0/0/0/0/0/0/0/0 Lore% 25 Gallery% 24 Achievement% 23 Wizard Run 0 Options --------- ASCII 0 Keyboard 0 Movement Mouse Keybinds 0 Fullscreen 1 Font 12/Smallcaps Map View 83x54 Tactical HUD 1 Map Filters NONE Filters NONE Steam 1 RUN: af5489fe-3476-4c3a-9268-2fc102bc81f0